[Event "BL 2024-25"]
[Site "Austria"]
[Date "2024.10.12"]
[Round "4.7"]
[White "Nguyen, Thai Dai Van"]
[Black "Dragnev, Valentin"]
[Result "1-0"]
[Annotator "TA"]
[ECO "C88"]
[WhiteElo "2663"]
[BlackElo "2562"]
[PlyCount "77"]
[EventDate "2024.08.28"]
[EventType "team-tourn"]
[EventCountry "AUT"]
[SourceTitle "playchess.com"]
[Source "ChessBase"]
[SourceQuality "1"]
[WhiteTeam "Mistelbach"]
[BlackTeam "Ottakring"]
[TimeControl "40/5400+30:1800+30"]

{[%evp 18,77,32,19,17,22,27,25,23,35,26,19,22,27,28,20,20,17,25,38,21,16,22,24,33,33,40,38,35,35,35,35,36,35,36,29,43,34,35,35,45,45,64,64,64,55,51,55,56,35,48,47,159,150,655,229,1184,1084,1022,-78,645,416]} 1. e4 {[%emt 0:00:16]} e5 {[%emt 0:00:19]} 2. Nf3 {[%emt 0:00:05]} Nc6 {[%emt 0:00:06]} 3. Bb5 {[%emt 0:00:08]} a6 {[%emt 0:00:16]} 4. Ba4 {[%emt 0:00:07]} Nf6 {[%emt 0:00:07]} 5. O-O {[%emt 0:00:08]} Be7 {[%emt 0:00:13]} 6. Re1 {[%emt 0:00:09]} b5 {[%emt 0:00:07]} 7. Bb3 {[%emt 0:00:03]} O-O {[%emt 0:00:36]} 8. a4 {[%emt 0:00:07]} Bb7 {[%emt 0:00:36]} 9. d3 {[%emt 0:00:08]} Re8 {[%emt 0:00:16]} 10. Bg5 {[%emt 0:01:37]} h6 {[%emt 0:00:57]} 11. axb5 {[%emt 0:00:09]} axb5 {[%emt 0:00:06][%cal Ba6b5,Bb5b4][%mdl 32]} 12. Rxa8 {[%emt 0:00:05]} Bxa8 {[%emt 0:00:20] White has an edge.} 13. Bh4 {[%emt 0:01:08]} d6 {[%emt 0:05:10]} 14. Nc3 {[%emt 0:01:00][%cal Bb1c3,Bc3e2,Be2g3,Bg3f1,Bf1e3][%mdl 32]} Na5 {[%emt 0:08:57]} 15. Ba2 {[%emt 0:01:59][%cal Oh4f6]} b4 {[%emt 0:01:18]} 16. Ne2 {[%emt 0:00:06]} c5 {[%emt 0:08:02]} 17. Ng3 {[%emt 0:01:08]} g6 {[%emt 0:01:55]} 18. Bxf6 {[%emt 0:04:58]} Bxf6 {[%emt 0:02:19]} 19. Nf1 {[%emt 0:00:09]} b3 {[%emt 0:16:51]} 20. Bxb3 {[%emt 0:01:24]} Nxb3 {[%emt 0:00:07]} 21. cxb3 {[%emt 0:00:06]} Bg7 {[%emt 0:00:11]} 22. Ne3 {[%emt 0:03:10]} Qd7 {[%emt 0:00:49]} 23. Qc2 {[%emt 0:11:22]} Bc6 {[%emt 0:06:21]} 24. Ra1 {[%emt 0:02:52]} Rb8 {[%emt 0:01:41]} 25. Nd2 {[%emt 0:02:12]} h5 {[%emt 0:03:19]} 26. Ndc4 {[%emt 0:06:43]} Bh6 {[%emt 0:17:39]} 27. Ra6 {[%emt 0:06:18]} Bxe3 {[%emt 0:08:45]} 28. Nxe3 {[%emt 0:01:48]} Qb7 {[%emt 0:00:09]} 29. Ra3 {[%emt 0:00:12]} Bd7 {[%emt 0:00:24]} 30. Nc4 {[%emt 0:03:23]} Qc7 {[%emt 0:00:16]} 31. Qc3 {[%emt 0:20:14]} Be6 {[%emt 0:01:33]} 32. h3 {[%emt 0:00:06]} Qe7 {[%emt 0:01:57]} 33. Ra6 {[%emt 0:04:19]} Qg5 {[%emt 0:03:51]} 34. Qd2 {[%emt 0:07:56]} (34. Nxd6 Bxh3 35. g3 Qg4 $11) 34... Qe7 {[%emt 0:04:52]} (34... Qxd2 $1 $14 35. Nxd2 d5) 35. Nxd6 $16 {[%emt 0:04:26]} (35. Rxd6 Rxb3 36. Qc2 Bxc4 37. Qxc4 Qxd6) 35... Rb7 $2 (35... Rd8 $16) 36. Qc2 $2 {[%emt 0:00:30]} (36. Nxb7 Qxb7 37. Qa5) 36... Qg5 $2 {[%emt 0:02:02]} (36... Ra7 37. Rxa7 Qxa7) 37. Ra8+ $18 {[%emt 0:00:30]} Kh7 {[%emt 0:00:30] [#]} 38. Nxf7 $2 {[%emt 0:00:30]} Qe7 $2 {[%emt 0:00:30][%mdl 8192]} ({Reject} 38... Bxf7 39. Qxc5 Rd7 40. Ra7 (40. Qc8 Rd8 $11) 40... Rxa7 41. Qxa7 Qc1+ 42. Kh2 $11) (38... Rxf7 $17 39. Kh1 Rc7) 39. Nd8 {[%emt 0:00:30] Weighted Error Value: White=0.42/Black=0.49.  Loses game:     	---       	Black=1      Mistake:       	White=1     	Black=2      OK:         	White=17    	Black=9} 1-0

[Event "BL 2024-25"]
[Site "Austria"]
[Date "2024.10.12"]
[Round "4.8"]
[White "Papp, Gabor"]
[Black "Pechac, Jergus"]
[Result "1/2-1/2"]
[Annotator "TA"]
[ECO "C54"]
[WhiteElo "2508"]
[BlackElo "2582"]
[PlyCount "183"]
[EventDate "2024.08.28"]
[EventType "team-tourn"]
[EventCountry "AUT"]
[SourceTitle "playchess.com"]
[Source "ChessBase"]
[SourceQuality "1"]
[WhiteTeam "Ottakring"]
[BlackTeam "Mistelbach"]
[TimeControl "40/5400+30:1800+30"]

{[%evp 13,182,9,16,5,28,12,20,9,22,17,21,19,25,16,17,0,0,0,0,0,0,0,0,0,13,5,3,9,11,0,12,6,16,11,46,29,35,42,42,42,43,43,102,102,89,100,121,120,133,133,140,133,133,133,133,133,133,128,129,129,128,123,123,123,138,137,137,137,168,168,168,106,106,106,123,106,123,123,123,54,54,25,123,123,123,123,123,107,107,107,107,107,107,107,107,107,107,107,107,107,107,0,107,107,107,107,107,107,107,107,107,107,107,107,89,127,85,90,108,22,29,30,584,800,738,705,826,770,588,197,277,0,8,8,18,8,8,8,8,8,8,8,8,8,8,8,8,8,8,8,8,8,8,0,8,8,8,0,0,0,0,0,8,0,0,0,0,0,0,0,0]} 1. e4 {[%emt 0:00:03]} e5 {[%emt 0:00:05]} 2. Nf3 {[%emt 0:00:05]} Nc6 {[%emt 0:00:04]} 3. Bc4 {[%emt 0:00:20]} Bc5 {[%emt 0:00:56]} 4. c3 {[%emt 0:00:20]} Nf6 {[%emt 0:00:06]} 5. d3 {[%emt 0:00:06]} d6 {[%emt 0:01:51]} 6. O-O {[%emt 0:00:22]} O-O {[%emt 0:01:06]} 7. Nbd2 {[%emt 0:01:45]} a6 {[%emt 0:00:45]} 8. a4 {[%emt 0:00:21]} Ba7 {[%emt 0:00:33]} 9. h3 {[%emt 0:00:32]} Re8 {[%emt 0:06:31]} 10. b4 {[%emt 0:02:29]} Be6 {[%emt 0:02:51]} 11. Bxe6 {[%emt 0:01:12]} Rxe6 {[%emt 0:00:06]} 12. Qc2 {[%emt 0:06:11]} h6 {[%emt 0:08:11]} 13. Rd1 {[%emt 0:11:45]} Ne7 {[%emt 0:22:14]} 14. c4 {[%emt 0:30:20]} Nc6 {[%emt 0:03:44]} 15. b5 {[%emt 0:02:50]} Nd4 {[%emt 0:02:36]} 16. Nxd4 {[%emt 0:00:05]} Bxd4 {[%emt 0:00:04]} 17. Bb2 {[%emt 0:00:48]} Bxb2 {[%emt 0:01:00]} 18. Qxb2 {[%emt 0:00:04]} a5 {[%emt 0:01:14]} 19. Nf1 {[%emt 0:01:33][%cal Bd2f1,Bf1e3,Be3f5][%mdl 32]} Nd7 {[%emt 0:01:22]} 20. Ne3 {[%emt 0:03:33]} Nc5 {[%emt 0:01:27]} 21. Qc2 {[%emt 0:00:06]} Rg6 {[%emt 0:03:04]} 22. Kh2 {[%emt 0:03:33]} Ne6 {[%emt 0:01:34]} 23. Nf5 {[%emt 0:00:51]} b6 {[%emt 0:02:19]} 24. Rg1 {[%emt 0:02:26]} Kh7 {[%emt 0:00:26]} 25. Raf1 {[%emt 0:01:12]} Rf6 {[%emt 0:02:12]} 26. Qd1 {[%emt 0:02:25]} Qd7 {[%emt 0:01:14]} 27. Ne3 {[%emt 0:02:32]} Nf4 {[%emt 0:00:31]} (27... Rg6 $14) 28. Nd5 $1 $16 {[%emt 0:00:44]} Nxd5 {[%emt 0:05:06]} 29. cxd5 {[%emt 0:00:08]} g5 {[%emt 0:00:20]} 30. Qg4 {[%emt 0:04:05]} Qxg4 {[%emt 0:01:35]} 31. hxg4 {[%emt 0:00:05][%mdl 4096] Endgame. KRR-KRR} Rg6 {[%emt 0:00:05]} 32. Rc1 {[%emt 0:00:13]} Ra7 {[%emt 0:00:04]} 33. Rc2 {[%emt 0:02:22] Strongly threatening Rgc1.} Rg7 {[%emt 0:00:08]} 34. Rgc1 {[%emt 0:00:03]} f6 {[%emt 0:00:06]} 35. Kg3 {[%emt 0:00:09]} Kg8 {[%emt 0:05:38]} 36. Kf3 {[%emt 0:00:47]} Kf8 {[%emt 0:01:31]} 37. Ke2 {[%emt 0:09:17]} Ke8 {[%emt 0:01:49]} 38. d4 {[%emt 0:00:13]} Kf8 {[%emt 0:12:20]} 39. Rc3 {[%emt 0:00:34]} Re7 {[%emt 0:02:22]} 40. Rh3 {[%emt 0:07:28]} Rh7 {[%emt 0:00:06]} 41. Rf3 {[%emt 0:32:51]} Kg7 {[%emt 0:31:03]} 42. Rcc3 {[%emt 0:00:00]} (42. dxe5 $18 fxe5 43. Rcc3) 42... exd4 {[%emt 0:00:00]} 43. Rc1 {[%emt 0:00:00]} Kg6 {[%emt 0:00:00]} 44. Kd3 {[%emt 0:00:00] White is much more active.} Ra8 {[%emt 0:00:00]} 45. Kxd4 {[%emt 0:00:00]} Re8 {[%emt 0:00:00]} 46. Rfc3 {[%emt 0:00:00]} (46. Rh3 $16) 46... Ree7 $1 $14 {[%emt 0:00:00]} 47. Rh1 {[%emt 0:00:00]} Rd7 {[%emt 0:00:00]} (47... h5 $11 {remains equal.}) 48. Rch3 $16 {[%emt 0:00:00]} Rde7 {[%emt 0:00:00]} 49. f3 {[%emt 0:00:00]} Rd7 {[%emt 0:00:00]} 50. g3 {[%emt 0:00:00]} Rde7 {[%emt 0:00:00]} 51. R3h2 {[%emt 0:00:00]} Re8 {[%emt 0:00:00]} 52. Rc1 {[%emt 0:00:00]} Rd7 {[%emt 0:00:00]} 53. Rhc2 {[%emt 0:00:00]} Ree7 {[%emt 0:00:00]} 54. f4 {[%emt 0:00:00]} Kg7 {[%emt 0:00:00]} 55. Rc6 {[%emt 0:00:00]} Kh7 {[%emt 0:00:00]} 56. R6c3 {[%emt 0:00:00]} Kg6 {[%emt 0:00:00]} 57. R3c2 {[%emt 0:00:00]} Kg7 {[%emt 0:00:00]} 58. Re1 {[%emt 0:00:53]} Rf7 {[%emt 0:00:00]} 59. Rc6 {[%emt 0:01:47]} gxf4 {[%emt 0:05:12]} 60. gxf4 {[%emt 0:00:08]} Rde7 {[%emt 0:00:32]} 61. Rec1 {[%emt 0:01:20]} Kg6 {[%emt 0:00:24]} 62. R6c2 {[%emt 0:00:27]} Rg7 {[%emt 0:00:36]} 63. Ke3 {[%emt 0:00:24]} h5 {[%emt 0:02:29]} 64. gxh5+ {[%emt 0:00:48]} Kxh5 {[%emt 0:00:07]} 65. Kf3 {[%emt 0:04:37] Against Rg3+} Kg6 {[%emt 0:00:21]} 66. Rh1 {[%emt 0:01:37]} (66. Rh2 $1 $16) 66... Kf7 $1 $11 {[%emt 0:03:26]} 67. Rh8 {[%emt 0:00:02]} Rg8 $2 {[%emt 0:01:51][%mdl 8192]} (67... Rg1 $11 {and Black has nothing to worry.}) 68. Rxg8 $1 $18 {[%emt 0:00:04]} Kxg8 {[%emt 0:00:03] [#] KR-KR} 69. Kg4 $1 {[%emt 0:00:36]} Rxe4 {[%emt 0:00:40]} 70. Rxc7 {[%emt 0:00:03]} (70. Kf5 Re7 71. Rg2+ (71. Kxf6 Rh7 $16) 71... Kf8 $16) 70... Rxa4 {[%emt 0:01:14]} 71. Rc6 $2 {[%emt 0:01:04]} (71. Kf5 Rd4 $16) (71. Rb7 {[%cal Og4f5] Kf5! would now be deadly.} Rd4 72. Kf5) 71... Rd4 {[%emt 0:00:58] [#]} (71... Rb4 $142) 72. Rxd6 $2 {[%emt 0:00:37]} (72. Kf5 $1 $18 {[%cal Rf5e6]}) 72... a4 {[%emt 0:00:08][%cal Ba5a4,Ba4a3,Ba3a2][%mdl 32] The position is equal.} 73. Kf5 {[%emt 0:01:13]} (73. Rxb6 {simplifies} Rxd5 74. Rxf6 Rxb5 75. Ra6) 73... a3 {[%emt 0:01:04]} 74. Rxb6 {[%emt 0:01:45]} (74. Kxf6 Rxf4+ 75. Ke5 a2 76. Rg6+ Kf8 $17) 74... a2 {[%emt 0:06:32]} 75. Ra6 {[%emt 0:00:46]} (75. Kxf6 a1=Q (75... a1=B 76. Rb8+ Kh7 77. Rb7+ Kh6 78. Ke5 $11) 76. Rb8+ Kh7 77. Ke5 Rc4+ 78. Ke6 Rxf4 79. Rb7+ Kg6 80. Kd6 Rf6+ 81. Kc7 Qe5+ 82. Kc8 Rf8+ (82... Qxd5 83. Rd7 Qxb5 84. Rd4 Qc6+ 85. Kb8 Rf8+ 86. Rd8 Rxd8+ 87. Ka7 Ra8#) 83. Kd7 Qxd5+ 84. Ke7 Qd8+ (84... Qxb7+ 85. Kd6 Rf5 86. Ke6 Qc7 87. b6 Re5#) 85. Ke6 Re8+) (75. Kg6 $5 Kf8 $8 76. Ra6 (76. Kxf6 $2 Rxf4+ 77. Kg5 a1=Q $19) (76. Rxf6+ Ke7 $11) 76... Rxf4 77. d6 $11 (77. Rxa2 Ke7 $11)) 75... Rxd5+ {[%emt 0:00:12]} 76. Kg6 $1 {[%emt 0:00:07] Intending Ra8+ and mate.} (76. Kxf6 $2 {perishes.} Rd6+ (76... Rxb5 77. Ra8+ Kh7 78. Ra7+ Kh6 79. Rxa2 $11) 77. Rxd6 a1=Q+ (77... a1=B+ 78. Kg6 Kf8 79. Re6 Bg7 80. b6 Bd4 81. b7 Ba7 82. f5 Bb8 83. f6 Bg3 84. f7 Bh4 85. Re8#) 78. Kf5 Qb1+ 79. Kg4 Qb2 $19 (79... Qxb5 $2 80. Rg6+ Kf8 81. f5 $19)) 76... Kf8 {[%emt 0:00:03]} 77. b6 {[%emt 0:03:54]} (77. Kxf6 $2 {too greedy.} Rd6+ (77... Rxb5 78. Ra8+) 78. Rxd6 a1=Q+ (78... a1=B+ 79. Ke6 Bc3 80. b6 Bb4 81. Rd8+ Kg7 82. b7 Bf8 83. b8=Q) 79. Kf5 Qb1+ 80. Kg5 Ke7 $19 (80... Qxb5+ $2 81. f5 $19)) (77. Rxa2 {simplifies} Rxb5 78. Ra8+ Ke7 79. Ra7+) 77... Rb5 {[%emt 0:01:16]} (77... Rd2 {feels hotter.} 78. b7 Rb2 79. Kxf6 Rb6+) 78. f5 {[%emt 0:00:00]} Rxb6 {[%emt 0:00:43]} 79. Rxa2 {[%emt 0:00:00]} Rb8 {[%emt 0:00:37] Repels Ra8} 80. Ra6 {[%emt 0:00:41]} (80. Kxf6 $5 Rb6+ $8 81. Kg5 $11) 80... Kg8 {[%emt 0:00:11]} 81. Rc6 {[%emt 0:00:10]} Ra8 {[%emt 0:00:22]} 82. Rd6 {[%emt 0:00:01]} Rb8 {[%emt 0:01:10]} 83. Kxf6 {[%emt 0:00:18] Threatening mate with Kg6.} Rb1 {[%emt 0:00:51]} 84. Rd8+ {[%emt 0:01:28]} Kh7 {[%emt 0:00:04]} 85. Ke7 {[%emt 0:00:15]} Rb7+ {[%emt 0:00:45]} 86. Rd7 {[%emt 0:00:07]} Rb8 {[%emt 0:00:07]} 87. Ke6+ {[%emt 0:01:07]} Kg8 {[%emt 0:00:45]} 88. f6 {[%emt 0:00:26]} Re8+ {[%emt 0:00:10]} 89. Re7 {[%emt 0:00:18]} Kf8 {[%emt 0:00:17]} 90. Rxe8+ {[%emt 0:00:49]} Kxe8 {[%emt 0:00:03]} 91. f7+ {[%emt 0:00:03]} Kf8 {[%emt 0:00:09]} 92. Kf6 {[%emt 0:00:32] Blacks defense is rewarded with a draw.   Weighted Error Value: White=0.09 (flawless) /Black=0.08 (flawless) .  Loses game:     	---       	Black=1      Missed win:     	White=1     	---        Mistake:       	White=3     	Black=2      Inaccurate:     	White=1     	Black=1      OK:         	White=24    	Black=22     Best:        	White=1     	Black=11     Strong:       	White=4     	Black=2} 1/2-1/2

[Event "BL 2024-25"]
[Site "Austria"]
[Date "2024.10.12"]
[Round "4.9"]
[White "Kraus, Tomas"]
[Black "Peyrer, Konstantin"]
[Result "0-1"]
[Annotator "TA"]
[ECO "D30"]
[WhiteElo "2461"]
[BlackElo "2415"]
[PlyCount "56"]
[EventDate "2024.08.28"]
[EventType "team-tourn"]
[EventCountry "AUT"]
[SourceTitle "playchess.com"]
[Source "ChessBase"]
[SourceQuality "1"]
[WhiteTeam "Mistelbach"]
[BlackTeam "Ottakring"]
[TimeControl "40/5400+30:1800+30"]

{[%evp 9,56,32,36,16,17,0,12,9,22,7,32,13,15,-8,-14,-9,24,12,34,0,30,-147,-140,-226,-220,-204,-184,-190,-203,-292,-301,-464,-452,-451,-416,-405,-390,-396,-296,-473,-465,-726,-675,-773,-753,-1122,-1123,-1550,-1525]} 1. Nf3 {[%emt 0:00:28]} Nf6 {[%emt 0:00:10]} 2. c4 {[%emt 0:00:35]} e6 {[%emt 0:00:06]} 3. e3 {[%emt 0:00:30]} d5 {[%emt 0:00:09]} 4. d4 {[%emt 0:00:13]} Bb4+ {[%emt 0:02:04]} 5. Bd2 {[%emt 0:05:53]} Be7 {[%emt 0:00:42]} 6. Nc3 {[%emt 0:01:34] D30: Damegambiet Geweigerd: Systemen zonder Pc3.} O-O {[%emt 0:03:11] OK} 7. Bd3 {[%emt 0:09:03]} c5 {[%emt 0:02:05]} 8. cxd5 {[%emt 0:05:18] OK. De stelling is in evenwicht.} exd5 {[%emt 0:00:38]} 9. dxc5 {[%emt 0:02:40]} Bxc5 {[%emt 0:00:53]} 10. O-O {[%emt 0:06:57] OK} Nc6 {[%emt 0:00:47] OK} 11. Rc1 {[%emt 0:01:03]} Bg4 {[%emt 0:05:32] OK} 12. Be2 {[%emt 0:05:06]} Re8 $146 {[%emt 0:08:13] Onnauwkeurig} ({Predecessor:} 12... a6 13. h3 Bh5 14. Na4 Bd6 15. Nc5 Qb6 16. Na4 Qc7 17. Be1 Rac8 18. Nc3 Rfd8 19. Qb3 Qe7 20. Bd2 b5 21. Rfd1 Na5 {0-1 Montano Vicente,G (1819)-Ambartsumova,K (2406) Titled Tuesday intern op 16th Apr Early blitz 2024 (1)}) 13. h3 {[%emt 0:01:28]} Bh5 {[%emt 0:00:31]} 14. Nb5 {[%emt 0:10:09] Onnauwkeurig} (14. Be1 $5 {vereenvoudigt} Bd6 15. Nh4 Bxe2 16. Nxe2 Rc8 17. Bc3) 14... Ne4 {[%emt 0:06:55] Onnauwkeurig} 15. Bc3 $2 {[%emt 0:04:29] Fout (1.8)} (15. Be1 $11) 15... Ng3 {[%emt 0:06:50][%cal Re8e3] [#] ...Rxe3! is de sterke dreiging. Zwart is actiever.} 16. Be1 {[%emt 0:19:11] pakt misschien beter uit. Fout (0.9)} (16. fxg3 $2 {te hebberig.} Bxe3+ 17. Kh2 Bxc1) (16. Bd2 $17 Nxe2+ (16... Nxf1 17. Rxc5 Nxd2 18. Qxd2 $17) 17. Qxe2) 16... Nxe2+ $19 {[%emt 0:14:28] Beste (Gemakkelijk)} (16... Nxf1 17. Rxc5 Qe7 18. Rxd5 (18. Qxd5 Bxf3 19. Bxf3 Nd2 $17) 18... Nxe3 19. fxe3 Qxe3+ 20. Kf1 $18) 17. Qxe2 {[%emt 0:00:05]} Bb6 {[%emt 0:00:06] Sterke dreiging met ...a6. OK} 18. g4 {[%emt 0:01:58]} Bg6 {[%emt 0:00:33] Dreigt te winnen met ...d4. OK} 19. Qd1 {[%emt 0:01:19] Fout (0.9)} (19. Rd1) 19... h5 {[%emt 0:03:43] OK} 20. Bc3 {[%emt 0:01:35] is een betere verdediging. Fout (1.6)} (20. Rc3) 20... hxg4 {[%emt 0:01:55] Beste} 21. hxg4 {[%emt 0:00:00]} Re4 {[%emt 0:00:34] OK} 22. Nh2 {[%emt 0:03:32] OK} a6 {[%emt 0:02:11] OK} 23. Nd4 {[%emt 0:00:19] OK} Bc7 {[%emt 0:00:10]} 24. f4 {[%emt 0:07:13] Unavoidable move. Fout (1.8)} (24. f3 Rxe3 25. Nxc6) 24... Rxe3 {[%emt 0:03:34] Beste. Zwart is duidelijk aan het winnen.} 25. Nxc6 {[%emt 0:00:14] Fout (2.6)} (25. Nf5 $142 Bxf5 26. gxf5) 25... Qh4 {[%emt 0:00:39] Beste} 26. Rf3 {[%emt 0:06:52]} Bxf4 {[%emt 0:00:59][%cal Rh4h2]} 27. Ne7+ {[%emt 0:02:37]} Rxe7 {[%emt 0:00:12]} 28. Rxf4 {[%emt 0:00:05]} Qg3+ {[%emt 0:00:05] Blunder waarde: Wit=1.36/Zwart=0.08 (foutloos) .  Fout:        	Wit=6      	---        Onnauwkeurig:    	Wit=1      	Zwart=2      OK:         	Wit=4      	Zwart=8      Beste:        	---       	Zwart=4} 0-1

[Event "BL 2024-25"]
[Site "Austria"]
[Date "2024.10.12"]
[Round "4.10"]
[White "Froewis, Georg"]
[Black "Stalmach, Richard"]
[Result "1-0"]
[Annotator "TA"]
[ECO "E99"]
[WhiteElo "2429"]
[BlackElo "2433"]
[PlyCount "79"]
[EventDate "2024.08.28"]
[EventType "team-tourn"]
[EventCountry "AUT"]
[SourceTitle "playchess.com"]
[Source "ChessBase"]
[SourceQuality "1"]
[WhiteTeam "Ottakring"]
[BlackTeam "Mistelbach"]
[TimeControl "40/5400+30:1800+30"]

{[%evp 24,79,66,54,67,44,83,62,62,3,67,55,67,68,72,67,59,67,161,136,138,110,152,103,199,213,197,185,302,246,630,451,464,398,466,531,742,561,607,572,540,520,461,471,541,556,565,562,570,540,532,518,549,540,531,414,5518,5510]} 1. Nf3 {[%emt 0:00:04]} Nf6 {[%emt 0:00:06]} 2. c4 {[%emt 0:00:02]} g6 {[%emt 0:00:05]} 3. Nc3 {[%emt 0:00:03]} Bg7 {[%emt 0:00:04]} 4. e4 {[%emt 0:00:04]} d6 {[%emt 0:00:04]} 5. d4 {[%emt 0:00:03]} O-O {[%emt 0:00:04]} 6. Be2 {[%emt 0:00:04]} e5 {[%emt 0:00:04]} 7. O-O {[%emt 0:00:05]} Nc6 {[%emt 0:00:02]} 8. d5 {[%emt 0:00:04]} Ne7 {[%emt 0:00:04]} 9. Ne1 {[%emt 0:00:05]} Nd7 {[%emt 0:00:03]} 10. Nd3 {[%emt 0:00:10]} f5 {[%emt 0:00:04]} 11. f3 {[%emt 0:00:04]} f4 {[%emt 0:00:03]} 12. Bd2 {[%emt 0:00:08]} g5 {[%emt 0:00:06]} 13. Rc1 {[%emt 0:00:56]} Kh8 {[%emt 0:00:13]} 14. Kh1 {[%emt 0:02:31]} h5 {[%emt 0:03:13]} 15. Rg1 {[%emt 0:04:36][%cal Bf1g1,Bg1g2,Bg2h2][%mdl 32]} Ng6 {[%emt 0:05:50] White is slightly better.} 16. g3 {[%emt 0:00:53]} (16. b4 $14) 16... fxg3 {[%emt 0:04:26]} (16... Bf6 $11) 17. hxg3 $14 {[%emt 0:01:16][%cal Bh2g3,Bg3f4,Bf4f5][%mdl 32]} Rf7 {[%emt 0:06:47]} 18. Rg2 {[%emt 0:01:44][%cal Of3f4] Hoping for f4!} Bf6 $1 {[%emt 0:17:23]} 19. Qg1 {[%emt 0:15:25] White is more active.} Rh7 {[%emt 0:04:04]} 20. Rh2 {[%emt 0:01:03]} c5 {[%emt 0:06:08] White stays focused until the end.} ({Better is} 20... Qe7 $14) 21. f4 $18 {[%emt 0:04:43]} exf4 {[%emt 0:08:56]} 22. gxf4 {[%emt 0:02:36]} g4 {[%emt 0:05:22]} 23. Rf1 {[%emt 0:06:54]} (23. f5 $142 Ngf8 24. Rf1) 23... Qe7 {[%emt 0:03:51] [#]} (23... Bd4 $16 {is a better defense.} 24. Be3 Bxc3) 24. e5 $1 {[%emt 0:03:49][%mdl 512]} dxe5 {[%emt 0:10:12]} 25. f5 $36 {[%emt 0:00:08][%mdl 2048] White is in control.} Nh4 {[%emt 0:01:17]} (25... Ngf8 {was worth a try.} 26. Ne4 b6) 26. Ne4 {[%emt 0:00:27]} Nb6 $2 {[%emt 0:00:10]} (26... b5) 27. Bc3 {[%emt 0:05:48] Threatens to win with Nxf6.} Na4 {[%emt 0:03:44]} 28. Be1 {[%emt 0:10:10]} (28. Ndxc5 Nxc5 (28... Bxf5 $2 29. Qg3 $18) 29. d6 (29. Qxc5 Qxc5 30. Nxc5 Nxf5 $18) 29... Bxf5 30. Rxf5 (30. dxe7 $2 Bxe4+ $19) 30... Nxe4 $18) 28... Bxf5 {[%emt 0:01:14]} 29. Nxf6 {[%emt 0:00:19]} (29. Ndxc5 Nxc5 30. Nxf6 Qxf6 $11) 29... Nf3 {[%emt 0:04:05]} 30. Bxf3 {[%emt 0:00:32]} Qxf6 {[%emt 0:00:14]} 31. Bh4 {[%emt 0:05:01]} ({Inferior is} 31. Nxc5 Nxc5 32. Bg2 (32. Qxc5 gxf3 33. Bh4 Qg6 $11) 32... Nd3 $11) 31... Qh6 {[%emt 0:07:16]} 32. Be2 {[%emt 0:03:29]} Be4+ {[%emt 0:00:05] [#]} 33. Rg2 $1 {[%emt 0:00:03][%mdl 512]} Rf8 {[%emt 0:02:20]} (33... Re8 34. Kh2) 34. Rxf8+ {[%emt 0:02:53]} Qxf8 {[%emt 0:00:01] [#]} 35. Qe3 $1 {[%emt 0:00:23]} Qf5 {[%emt 0:00:03] [#]} 36. Kh2 $1 {[%emt 0:00:56]} Bxg2 {[%emt 0:00:21]} 37. Kxg2 {[%emt 0:00:02]} e4 {[%emt 0:03:54]} 38. Nf2 {[%emt 0:00:09][%cal Bd3f2,Bf2e4,Be4d6][%mdl 32]} Rf7 {[%emt 0:03:38]} 39. Nxe4 {[%emt 0:00:46] Black must now prevent Nd6.} Nxb2 {[%emt 0:03:46]} (39... Qf4 $142 40. Bg5 (40. Qxf4 Rxf4 41. Nf6 g3 $18) 40... Qxe3 41. Bxe3 Nb6) 40. Nd6 {[%emt 0:00:43] Weighted Error Value: White=0.52/Black=0.43.  Mistake:       	White=2     	Black=6      Inaccurate:     	---       	Black=3      OK:         	White=9     	Black=12     Best:        	White=1     	Black=1      Strong:       	---       	Black=1      Brilliant:      	White=2     	---} 1-0

[Event "BL 2024-25"]
[Site "Austria"]
[Date "2024.10.12"]
[Round "4.11"]
[White "Haba, Petr"]
[Black "Balint, Peter"]
[Result "1/2-1/2"]
[Annotator "TA"]
[ECO "D33"]
[WhiteElo "2422"]
[BlackElo "2375"]
[PlyCount "60"]
[EventDate "2024.08.28"]
[EventType "team-tourn"]
[EventCountry "AUT"]
[SourceTitle "playchess.com"]
[Source "ChessBase"]
[SourceQuality "1"]
[WhiteTeam "Mistelbach"]
[BlackTeam "Ottakring"]
[TimeControl "40/5400+30:1800+30"]

{[%evp 16,60,56,45,46,43,31,20,40,35,35,41,41,46,45,61,42,56,61,39,52,17,7,0,0,0,1,0,0,0,0,0,0,0,0,0,0,0,0,0,0,0,0,0,0,0,0]} 1. c4 {[%emt 0:00:18]} Nf6 {[%emt 0:00:14]} 2. Nc3 {[%emt 0:00:17]} c5 {[%emt 0:00:04]} 3. g3 {[%emt 0:02:22]} e6 {[%emt 0:01:57][%cal Be7e6,Be6d5,Bd5d4][%mdl 32]} 4. Nf3 {[%emt 0:03:01][%cal Bg1f3,Bf3d4,Bd4b3][%mdl 32]} d5 {[%emt 0:00:08]} 5. cxd5 {[%emt 0:00:21]} exd5 {[%emt 0:00:08]} 6. d4 {[%emt 0:00:07]} Nc6 {[%emt 0:00:20]} 7. Bg2 {[%emt 0:01:10]} cxd4 {[%emt 0:00:06]} 8. Nxd4 {[%emt 0:00:40]} Bc5 {[%emt 0:00:10]} 9. Nb3 {[%emt 0:01:22][%csl LRc5,LRd5]} Bb6 {[%emt 0:00:05]} 10. O-O {[%emt 0:00:39][%cal Oa2a4]} d4 {[%emt 0:00:53]} 11. Na4 {[%emt 0:06:04]} O-O {[%emt 0:02:20]} 12. Bg5 {[%emt 0:02:06]} Re8 {[%emt 0:07:55]} 13. Re1 {[%emt 0:25:29]} h6 {[%emt 0:00:59]} 14. Bxf6 {[%emt 0:03:41]} Qxf6 {[%emt 0:00:42]} 15. Nxb6 {[%emt 0:00:23]} axb6 {[%emt 0:00:05]} 16. Bxc6 {[%emt 0:00:17]} bxc6 {[%emt 0:00:03]} 17. Qxd4 {[%emt 0:00:05]} Qd8 {[%emt 0:00:30]} 18. Qxd8 {[%emt 0:00:30]} Rxd8 {[%emt 0:00:30] The position is equal.} 19. Rad1 {[%emt 0:00:30]} Rxd1 {[%emt 0:00:30]} 20. Rxd1 $11 {[%emt 0:00:30][%mdl 4096] [#] Endgame. Rd8+ would now be deadly. KRB-KRN} Be6 $1 {[%emt 0:00:30]} 21. Nc1 {[%emt 0:00:30]} Bxa2 {[%emt 0:00:30]} 22. Nxa2 {[%emt 0:00:30]} Rxa2 {[%emt 0:00:30] KR-KR} 23. Rd8+ {[%emt 0:00:30]} Kh7 {[%emt 0:00:30]} 24. Rd6 {[%emt 0:00:30]} Rxb2 {[%emt 0:00:30]} 25. Rxc6 {[%emt 0:00:30]} Rxe2 {[%emt 0:00:30]} 26. Rxb6 {[%emt 0:00:30]} g6 {[%emt 0:00:30]} 27. h4 {[%emt 0:00:30]} h5 {[%emt 0:00:30]} 28. Kg2 {[%emt 0:00:30]} Kg7 {[%emt 0:00:30]} 29. Ra6 {[%emt 0:00:30]} Rb2 {[%emt 0:00:30]} 30. Rc6 {[%emt 0:00:30]} Ra2 {[%emt 0:00:30] Weighted Error Value: White=0.03 (flawless) /Black=0.01 (flawless) .  Inaccurate:     	White=1     	---        OK:         	White=11    	Black=10     Best:        	White=1     	Black=1      Strong:       	---       	Black=1} 1/2-1/2